[Event "55th Biel Festival GMT Classical 2022"]
[Site "Biel"]
[Date "2022.07.20"]
[Round "5.3"]
[White "Naiditsch, Arkadij"]
[Black "Abdusattorov, Nodirbek"]
[Result "0-1"]
[ECO "B31"]
[WhiteElo "2664"]
[BlackElo "2688"]
[Annotator "TA"]
[PlyCount "60"]
[EventDate "2022.07.14"]
[EventType "tourn"]
[EventCountry "SUI"]
[SourceTitle "playchess.com"]
[Source "ChessBase"]
[SourceQuality "1"]
[TimeControl "40/6000+30:20/3000+30:900+30"]

{[%evp 10,60,19,22,29,10,32,-12,25,23,28,17,18,14,16,9,27,20,18,16,35,35,23,12,10,0,15,0,15,0,0,-6,0,-28,-32,-28,-28,-43,-35,-144,-149,-233,-231,-313,-294,-427,-424,-863,-658,-870,-629,-811,-699]} 1. e4 {[%emt 0:00:05]} c5 {[%emt 0:00:18]} 2. Nf3 {[%emt 0:00:12]} Nc6 {[%emt 0:00:25]} 3. Bb5 {[%emt 0:00:13]} g6 {[%emt 0:00:17]} 4. Bxc6 {[%emt 0:00:08]} bxc6 {[%emt 0:00:28]} 5. O-O {[%emt 0:00:12]} Bg7 {[%emt 0:00:08]} 6. Re1 {[%emt 0:00:23]} Qc7 {[%emt 0:00:26] B31: Sicilian: 2...Nc6 3 Bb5 g6.} 7. Na3 {[%emt 0:10:09] [#]} d6 $146 {[%emt 0:10:11]} ({Predecessor:} 7... Nf6 8. e5 Nd5 9. c4 Nb4 10. d4 cxd4 11. Qxd4 Ba6 12. Bg5 c5 13. Qh4 Nc6 14. Nb5 {1-0 (29) Asrian,K (2634)-Kotanjian,T (2524) Yerevan 2007}) 8. Nc4 {[%emt 0:00:37]} e5 {[%emt 0:07:36] The position is equal.} (8... d5 $5 {[%cal Rd5c4]} 9. Na3 (9. exd5 cxd5 10. Na3 Nf6 $11) 9... Nf6 $11) 9. c3 {[%emt 0:09:54]} Be6 {[%emt 0:01:14]} 10. Qa4 {[%emt 0:07:23][%cal Od2d4]} Ne7 {[%emt 0:22:39]} 11. d4 {[%emt 0:01:33]} cxd4 {[%emt 0:00:06]} 12. cxd4 {[%emt 0:00:14]} exd4 {[%emt 0:00:07]} 13. Bf4 {[%emt 0:01:17]} Bxc4 {[%emt 0:01:31]} 14. Qxc4 {[%emt 0:01:55]} c5 {[%emt 0:06:03]} 15. Rac1 {[%emt 0:06:24] Black must now prevent e5.} O-O {[%emt 0:03:23]} 16. e5 {[%emt 0:07:00]} dxe5 {[%emt 0:01:54]} 17. Bxe5 {[%emt 0:09:21]} Bxe5 {[%emt 0:00:23]} 18. Nxe5 {[%emt 0:09:57]} Nf5 {[%emt 0:21:18]} 19. Qxc5 {[%emt 0:02:38]} Qb7 {[%emt 0:00:30]} 20. Ng4 {[%emt 0:15:00]} f6 {[%emt 0:03:06] Inhibits Qe5.} 21. Qa5 {[%emt 0:07:10] Rc7 is the strong threat.} Nh4 $40 {[%emt 0:02:15][%csl Gh4][%cal Rb7g2][%mdl 128] Black has some attack.} (21... Qxb2 $2 {[#]} 22. Nxf6+ $1 {[%mdl 512]} Rxf6 23. Qd5+ Rf7 24. Qxa8+ Kg7 25. Qd5 $18) 22. f3 {[%emt 0:02:37] Hoping for Rc7.} Qxb2 {[%emt 0:00:02][%csl Gh4][%cal Rb2g2]} 23. Nf2 {[%emt 0:00:39]} Rae8 {[%emt 0:01:39][%cal Ba8e8,Be8e5,Be5g5,Bg5g2,Bg2h2][%mdl 32]} 24. Red1 {[%emt 0:06:17]} ({White should try} 24. Qd5+ $15 Kh8 25. Rf1) 24... Re5 {[%emt 0:02:08]} 25. Qc7 {[%emt 0:03:40]} (25. Rc5 $17 Re2 26. Rb5) 25... Rg5 $19 {[%emt 0:02:56] Active counter play!} ({Worse is} 25... Qxa2 26. Rxd4 Rfe8 27. Re4 $11) 26. Rc2 {[%emt 0:00:48]} Rxg2+ {[%emt 0:00:27]} 27. Kh1 {[%emt 0:00:23]} (27. Kf1 $142 Qb5+ 28. Qc4+ Qxc4+ 29. Rxc4 Rxh2 30. Rd3) 27... Qb5 {[%emt 0:02:58] Black is clearly winning.} ({Inferior is} 27... Rxf2 28. Rxb2 Rxb2 29. Qc6 $17) 28. a4 {[%emt 0:07:06]} (28. Nd3 $142 Rxc2 29. Qxc2) 28... Qd5 {[%emt 0:01:38]} 29. Rd3 {[%emt 0:00:51]} Qe5 {[%emt 0:05:09][%cal Re5e1]} 30. Ne4 {[%emt 0:00:38] [#] Strongly threatening Qc4+.} Rxh2+ $3 {[%emt 0:00:25][%mdl 512] Weighted Error Value: White=0.61/Black=0.28 (precise)} 0-1

[Event "55th Biel Festival GMT Classical 2022"]
[Site "Biel"]
[Date "2022.07.20"]
[Round "5.4"]
[White "Esipenko, Andrey"]
[Black "Kamsky, Gata"]
[Result "1/2-1/2"]
[ECO "C95"]
[WhiteElo "2682"]
[BlackElo "2655"]
[Annotator "TA"]
[PlyCount "87"]
[EventDate "2022.07.14"]
[EventType "tourn"]
[EventCountry "SUI"]
[SourceTitle "playchess.com"]
[Source "ChessBase"]
[SourceQuality "1"]
[TimeControl "40/6000+30:20/3000+30:900+30"]

{[%evp 29,87,11,11,8,12,6,43,48,55,70,60,62,86,88,89,85,89,93,102,98,115,115,166,85,97,95,98,87,79,0,91,88,97,91,102,85,98,93,99,86,104,104,104,104,105,46,46,43,54,23,12,0,0,0,0,0,0,0,0,0]} 1. e4 {[%emt 0:00:04]} e5 {[%emt 0:00:37]} 2. Nf3 {[%emt 0:00:10]} Nc6 {[%emt 0:00:51]} 3. Bb5 {[%emt 0:00:11]} a6 {[%emt 0:00:18]} 4. Ba4 {[%emt 0:00:05]} Nf6 {[%emt 0:00:05]} 5. O-O {[%emt 0:00:25]} Be7 {[%emt 0:00:05]} 6. Re1 {[%emt 0:00:23]} b5 {[%emt 0:00:06]} 7. Bb3 {[%emt 0:00:04]} d6 {[%emt 0:00:04]} 8. c3 {[%emt 0:00:17]} O-O {[%emt 0:00:06]} 9. h3 {[%emt 0:00:07]} Nb8 {[%emt 0:00:05]} 10. d4 {[%emt 0:00:26]} Nbd7 {[%emt 0:00:06]} 11. Nbd2 {[%emt 0:00:14][%cal Bb1d2,Bd2f1,Bf1g3,Bg3e4,Be4f6][%mdl 32]} Bb7 {[%emt 0:00:06]} 12. Bc2 {[%emt 0:00:10]} Re8 {[%emt 0:00:15]} 13. Nf1 {[%emt 0:00:11]} Bf8 {[%emt 0:00:06]} 14. Ng3 {[%emt 0:00:05]} g6 {[%emt 0:00:06]} 15. Bd2 {[%emt 0:00:16]} Bg7 {[%emt 0:02:30]} 16. Qc1 {[%emt 0:01:54] C95: Closed Ruy Lopez: Breyer Variation with 10 d4.} d5 {[%emt 0:01:49]} 17. Bg5 {[%emt 0:00:40] With the idea dxe5.} dxe4 {[%emt 0:02:15]} 18. Bxe4 {[%emt 0:07:54] White is slightly better.} Bxe4 {[%emt 0:00:14]} 19. Nxe4 {[%emt 0:00:25] dxe5 is the strong threat.} exd4 {[%emt 0:00:27] [#]} 20. cxd4 {[%emt 0:00:34]} Qc8 {[%emt 0:10:13]} (20... Ra7 21. Ne5) 21. Nxf6+ {[%emt 0:16:04]} Nxf6 {[%emt 0:00:15] [#]} 22. Qc6 $146 {[%emt 0:09:23]} ({Predecessor:} 22. Rxe8+ Nxe8 23. Qc6 Nd6 24. Re1 Qb7 25. Qxb7 Nxb7 26. Rc1 Rc8 27. Rc6 Nd8 28. Rxa6 {1-0 (68) Spassky,B-Antoshin,V Sochi 1965}) 22... Qd7 {[%emt 0:04:17] [#]} 23. Rxe8+ {[%emt 0:04:45]} Qxe8 {[%emt 0:03:22]} 24. Qxc7 {[%emt 0:01:29]} Rc8 {[%emt 0:00:20]} 25. Qa7 {[%emt 0:14:28] White is more active.} Qe6 {[%emt 0:02:47] [#]} (25... Ra8 $16 {was worth a try.} 26. Qb6 Nd5) 26. a3 {[%emt 0:03:28]} (26. Re1 $1 $18 {[%cal Re1e6]} Qxa2 27. Qb7) 26... Nd5 {[%emt 0:09:07]} 27. Re1 {[%emt 0:05:18]} Qd6 {[%emt 0:05:09]} 28. Ne5 {[%emt 0:08:32]} Qe6 {[%emt 0:01:53]} 29. Nf3 {[%emt 0:01:48]} Qd6 {[%emt 0:00:11]} 30. Rc1 {[%emt 0:04:25]} Rxc1+ {[%emt 0:05:43]} 31. Bxc1 {[%emt 0:00:55]} h6 {[%emt 0:03:53]} 32. Bd2 {[%emt 0:04:32]} Qe6 {[%emt 0:01:35]} 33. Qb7 {[%emt 0:09:05]} Kh7 {[%emt 0:02:20]} 34. Ne5 {[%emt 0:08:25]} Bxe5 {[%emt 0:02:09]} 35. dxe5 $16 {[%emt 0:00:19][%mdl 4096] Endgame KQB-KQN} g5 {[%emt 0:03:52]} 36. Qa7 {[%emt 0:00:42]} Qf5 {[%emt 0:06:10]} 37. Qd4 {[%emt 0:03:25]} (37. f3 $16) 37... Nc7 $1 $14 {[%emt 0:00:20]} 38. Be3 {[%emt 0:05:55]} Ne6 {[%emt 0:00:22]} 39. Qc3 {[%emt 0:00:02]} h5 {[%emt 0:01:26]} 40. b4 {[%emt 0:01:06] The position is equal.} Kg6 {[%emt 0:03:52]} 41. Qc6 {[%emt 0:04:58]} Qxe5 {[%emt 0:00:09]} 42. Qxa6 {[%emt 0:00:09]} Qa1+ $1 {[%emt 0:00:37]} 43. Kh2 {[%emt 0:00:03]} Qe5+ {[%emt 0:00:04]} 44. Kg1 {[%emt 0:01:27] Weighted Error Value: White=0.11 (very precise) /Black=0.06 (flawless)} 1/2-1/2

[Event "55th Biel Festival GMT Classical 2022"]
[Site "Biel"]
[Date "2022.07.21"]
[Round "6.1"]
[White "Gukesh D"]
[Black "Kamsky, Gata"]
[Result "1/2-1/2"]
[ECO "D87"]
[WhiteElo "2684"]
[BlackElo "2655"]
[Annotator "TA"]
[PlyCount "80"]
[EventDate "2022.07.14"]
[EventType "tourn"]
[EventCountry "SUI"]
[SourceTitle "playchess.com"]
[Source "ChessBase"]
[SourceQuality "1"]
[TimeControl "40/6000+30:20/3000+30:900+30"]

{[%evp 19,80,10,39,0,4,-5,0,0,0,0,0,0,76,42,87,34,34,37,33,34,50,55,50,52,75,69,67,45,95,57,89,19,41,10,11,0,10,0,7,0,0,0,0,0,0,-8,-8,-8,-8,-8,-8,-37,-14,-31,-22,-26,-3,-11,0,-25,0,-11,0]} 1. d4 {[%emt 0:00:50]} Nf6 {[%emt 0:00:39]} 2. c4 {[%emt 0:00:47]} g6 {[%emt 0:00:09]} 3. Nc3 {[%emt 0:01:31]} d5 {[%emt 0:00:07]} 4. cxd5 {[%emt 0:02:36]} Nxd5 {[%emt 0:00:14]} 5. e4 {[%emt 0:00:20]} Nxc3 {[%emt 0:00:06]} 6. bxc3 {[%emt 0:00:03]} Bg7 {[%emt 0:00:06]} 7. Bc4 {[%emt 0:00:07]} O-O {[%emt 0:00:40]} 8. Ne2 {[%emt 0:00:05]} c5 {[%emt 0:00:20]} 9. O-O {[%emt 0:01:11]} Nc6 {[%emt 0:00:07]} 10. Be3 {[%emt 0:00:06]} b6 {[%emt 0:00:46] 10...Bg4 is a critical line.} 11. Qd2 {[%emt 0:07:28] D87: Exchange Grünfeld: Classical Line: Variations without ...cxd4.} Bb7 {[%emt 0:00:26] [#]} 12. d5 $146 {[%emt 0:00:06]} ({Predecessor:} 12. Rfd1 Rc8 13. Rac1 e6 14. Bb5 a6 15. Bxc6 Bxc6 16. d5 exd5 17. exd5 Ba4 18. Re1 h6 {½-½ (115) Sjugirov,S (2680)-Ivic,V (2610) Belgrade 2022}) 12... Ne5 {[%emt 0:03:36]} 13. Bb3 {[%emt 0:00:07]} Ba6 {[%emt 0:00:14] Inhibits c4.} 14. Bg5 {[%emt 0:00:06]} Qd7 {[%emt 0:09:07]} 15. f4 {[%emt 0:00:06]} Bxe2 {[%emt 0:12:54]} (15... f6 $11 16. Bh4 Nf7) 16. Qxe2 $16 {[%emt 0:00:12]} c4 {[%emt 0:00:03]} 17. Bc2 {[%emt 0:09:30]} ({Of course not} 17. Bxc4 $6 Nxc4 18. Qxc4 Rac8 $11) (17. fxe5 $16 cxb3 18. Rxf7 $1 (18. axb3 Bxe5 19. Qf3 Rac8 $11)) 17... Nd3 $14 {[%emt 0:02:08]} 18. Bxd3 {[%emt 0:00:39]} cxd3 {[%emt 0:00:05]} 19. Qxd3 {[%emt 0:00:06]} Rac8 {[%emt 0:07:27]} 20. Rac1 {[%emt 0:05:28][%cal Ba1c1,Bc1c2,Bc2f2][%mdl 32]} Rc5 {[%emt 0:00:16]} 21. f5 {[%emt 0:30:01]} Qd6 {[%emt 0:09:56]} 22. Be3 {[%emt 0:08:28]} Ra5 {[%emt 0:06:08]} 23. Rc2 {[%emt 0:01:39]} Be5 {[%emt 0:03:30]} (23... Ra3 $14) 24. g3 {[%emt 0:01:21]} Rc8 {[%emt 0:00:22] [#]} 25. Bd4 {[%emt 0:13:55]} ({White should play} 25. c4 $1 $16) 25... f6 {[%emt 0:13:28]} 26. fxg6 {[%emt 0:01:48]} hxg6 {[%emt 0:04:07]} 27. Rcf2 {[%emt 0:00:04]} Kg7 {[%emt 0:04:53]} 28. Qd1 {[%emt 0:03:28]} Ra3 {[%emt 0:02:28][%cal Ba5a3,Ba3d3,Bd3d4,Bd4d5,Bd5e5][%mdl 32]} 29. Bxe5 {[%emt 0:06:25]} (29. Qg4 {with more complications.} Rc4 30. Rd1 Bxd4 31. cxd4 Raa4 32. Rfd2) 29... Qxe5 {[%emt 0:00:11]} 30. Qd4 {[%emt 0:01:35]} Qxd4 {[%emt 0:00:28]} 31. cxd4 $11 {[%emt 0:00:02][%mdl 4096] Endgame KRR-KRR} Rd3 {[%emt 0:02:03]} 32. e5 {[%emt 0:00:32][%cal Re5f6]} f5 {[%emt 0:02:59]} 33. g4 {[%emt 0:01:29]} Rxd4 {[%emt 0:00:05]} 34. gxf5 {[%emt 0:00:07]} Rxd5 {[%emt 0:00:04]} 35. Re2 {[%emt 0:08:27]} Rf8 {[%emt 0:10:07]} 36. Rg2 {[%emt 0:00:06]} Rxe5 {[%emt 0:00:17]} 37. Rxg6+ {[%emt 0:00:33]} Kf7 {[%emt 0:02:19]} (37... Kh7 $5 {[%cal Rf8f5]}) 38. Rh6 {[%emt 0:03:47]} Kg7 {[%emt 0:04:04]} 39. Rg6+ {[%emt 0:00:10]} Kf7 {[%emt 0:01:29]} 40. Rh6 $1 {[%emt 0:00:05]} Kg7 {[%emt 0:00:05] Weighted Error Value: White=0.13 (very precise) /Black=0.15 (very precise)} 1/2-1/2

[Event "55th Biel Festival GMT Classical 2022"]
[Site "Biel"]
[Date "2022.07.21"]
[Round "6.2"]
[White "Abdusattorov, Nodirbek"]
[Black "Esipenko, Andrey"]
[Result "0-1"]
[ECO "C54"]
[WhiteElo "2688"]
[BlackElo "2682"]
[Annotator "TA"]
[PlyCount "121"]
[EventDate "2022.07.14"]
[EventType "tourn"]
[EventCountry "SUI"]
[SourceTitle "playchess.com"]
[Source "ChessBase"]
[SourceQuality "1"]
[TimeControl "40/6000+30:20/3000+30:900+30"]

{[%evp 14,121,17,16,16,16,16,16,11,13,20,-7,0,-5,0,-27,-32,-24,-36,-36,-31,-35,-5,-58,-42,-62,-47,-46,-53,-91,-103,-121,-113,-142,-145,-122,-130,-117,-75,-133,-129,-118,-133,-111,-129,-144,-147,-132,-120,-119,-131,-139,-106,-94,0,-128,-152,-145,-152,-145,-152,-177,-160,-178,-178,-192,-187,-163,-177,-184,-182,-172,-169,-198,-194,-210,-187,-208,-177,-175,-175,-175,-164,-166,-171,-177,-177,-172,-165,-422,-422,-754,-688,-688,-688,-1442,-1322,-1181,-1141,-29966,-29963,-29977,-29980,-29980,-29981,-29981,-29981,-29981,-29980,-29991]} 1. e4 {[%emt 0:00:08]} e5 {[%emt 0:00:09]} 2. Nf3 {[%emt 0:00:33]} Nc6 {[%emt 0:00:10]} 3. Bc4 {[%emt 0:00:13]} Nf6 {[%emt 0:00:17]} 4. d3 {[%emt 0:00:28]} Bc5 {[%emt 0:00:45]} 5. O-O {[%emt 0:00:20]} h6 {[%emt 0:00:15]} 6. c3 {[%emt 0:02:03]} d6 {[%emt 0:00:13]} 7. b4 {[%emt 0:00:11]} Bb6 {[%emt 0:00:05]} 8. a4 {[%emt 0:00:06] a5 is the strong threat.} a5 $1 {[%emt 0:00:13] 8...a5 scores better than 8...a6. C54: Giuoco Piano: 4 c3 Nf6, main lines with 5 d4 and 5 d3.} 9. b5 {[%emt 0:00:44]} Ne7 {[%emt 0:00:05]} 10. Be3 {[%emt 0:03:57]} Bxe3 {[%emt 0:02:25] The position is equal.} 11. fxe3 {[%emt 0:00:06]} O-O {[%emt 0:05:40]} 12. Nbd2 {[%emt 0:05:52]} Ng6 {[%emt 0:06:24] [#]} 13. d4 $146 {[%emt 0:04:56]} ({Predecessor:} 13. Qe1 c6 14. Nh4 d5 15. exd5 cxd5 16. Bb3 Nxh4 17. Qxh4 Be6 18. d4 Rc8 19. Rac1 {0-1 (56) Adhiban,B (2660)-So,W (2772) chess24.com INT 2021}) 13... c6 {[%emt 0:05:19]} 14. Rb1 {[%emt 0:04:22]} d5 {[%emt 0:03:10]} 15. Bd3 {[%emt 0:12:54]} (15. dxe5 Ng4 16. exd5 cxd5 $17) 15... dxe4 {[%emt 0:11:42]} (15... Re8 {looks sharper.} 16. Re1 exd4 17. exd4 Nf4) 16. Bxe4 {[%emt 0:14:55]} Nxe4 {[%emt 0:10:44]} 17. Nxe4 {[%emt 0:00:06]} exd4 {[%emt 0:04:19]} 18. exd4 {[%emt 0:03:04]} (18. Nxd4 Qe7 19. Nf2 c5 $17) ({White should try} 18. Qxd4 $11 Qe7 19. Nd6) 18... cxb5 $1 $15 {[%emt 0:01:09]} 19. Rxb5 {[%emt 0:06:51]} Bd7 {[%emt 0:01:08]} 20. Rb2 {[%emt 0:01:57]} (20. Rxb7 $2 Bc6 21. Qb1 Bxb7 22. Qxb7 Qe8 $19) 20... Bc6 {[%emt 0:03:19]} 21. Qb1 {[%emt 0:05:40]} Re8 {[%emt 0:07:47]} 22. Nc5 {[%emt 0:04:57]} Re3 {[%emt 0:03:36]} 23. Qc1 {[%emt 0:03:13]} Qe7 {[%emt 0:00:55] Hoping for ...Re8.} 24. Re1 {[%emt 0:00:53]} Rxe1+ {[%emt 0:00:15]} 25. Qxe1 {[%emt 0:00:11]} Qd6 {[%emt 0:06:06]} 26. Qg3 {[%emt 0:12:04]} (26. Nh4 $142) 26... Qd5 $17 {[%emt 0:00:45]} 27. Ne5 {[%emt 0:07:11]} Nxe5 {[%emt 0:01:08]} 28. Qxe5 {[%emt 0:00:02]} Qc4 {[%emt 0:00:31]} 29. Qg3 {[%emt 0:00:55]} Re8 {[%emt 0:03:54]} 30. h4 {[%emt 0:00:47]} b6 $1 {[%emt 0:06:39]} 31. Rxb6 {[%emt 0:03:49] [#]} Bxg2 {[%emt 0:01:23][%mdl 512]} 32. Qd3 {[%emt 0:00:21] Against Qf1+} (32. Qxg2 $2 Re1+ 33. Kh2 Re2 $19) (32. Kxg2 $2 Qe2+ 33. Qf2 Qg4+ 34. Kf1 Qh3+ 35. Kg1 Re3 $19) 32... Qd5 {[%emt 0:10:05] White must now prevent ...Re1+.} 33. Qg3 {[%emt 0:01:03][%csl LRg2,LRh6] Prevents Re1+.} Qc4 $40 {[%emt 0:04:55][%mdl 128] Black attacks.} 34. Qd3 {[%emt 0:00:07] Prevents Qf1+.} ({Don't go for} 34. Qxg2 $2 Re1+ 35. Kh2 Re2 $19) (34. Kxg2 $2 Qe2+ 35. Qf2 Qg4+ 36. Kf1 Qd1+ 37. Kg2 Re2 38. Rb8+ Kh7 $19) 34... Qa2 {[%emt 0:06:54][%cal Og2h1] White is now going downhill.} 35. Qb1 {[%emt 0:00:05]} Qd2 {[%emt 0:00:21] ( -> ...Bf3)} 36. Rb8 {[%emt 0:00:15][%cal Rb8e8] [#]} Bc6 {[%emt 0:00:37][%csl Gc6][%cal Rd2g2] Dancing on a razor blade.} ({Don't play} 36... Rxb8 $6 37. Qxb8+ Kh7 38. Qh2 $11) 37. Rxe8+ {[%emt 0:00:16]} Bxe8 {[%emt 0:00:04][%mdl 4096] Endgame KQB-KQN} 38. Qe4 {[%emt 0:01:36] Inhibits Qe3+.} Kf8 {[%emt 0:00:19]} 39. Qe5 {[%emt 0:06:42]} Qxc3 {[%emt 0:00:50]} 40. Kf2 {[%emt 0:00:15]} Qb2+ {[%emt 0:03:04]} 41. Ke3 {[%emt 0:54:20]} Qb6 {[%emt 0:02:58] Against Qd6+} 42. Kd3 {[%emt 0:00:00]} Qd8 {[%emt 0:09:02]} 43. Qf4 {[%emt 0:00:00] Strongly threatening Ne6+.} Kg8 {[%emt 0:02:58]} 44. Qe4 {[%emt 0:00:00]} Qb8 {[%emt 0:06:28][%cal Oe8a4]} 45. d5 {[%emt 0:00:00]} Qb1+ {[%emt 0:01:34]} 46. Kd4 {[%emt 0:00:00]} Qa1+ {[%emt 0:06:06]} 47. Kd3 {[%emt 0:00:00]} Qd1+ {[%emt 0:03:43]} 48. Kc3 {[%emt 0:00:00]} Kf8 {[%emt 0:01:39]} 49. Qd4 {[%emt 0:00:00]} Qxd4+ {[%emt 0:11:31]} 50. Kxd4 $19 {[%emt 0:00:00] KB-KN} Ke7 {[%emt 0:00:08]} 51. Ke5 $2 {[%emt 0:00:00]} (51. Nb7) 51... f6+ {[%emt 0:00:32][%cal Bf7f6,Bf6g5][%mdl 32]} 52. Kd4 {[%emt 0:00:00]} (52. Ke4 $142) 52... h5 {[%emt 0:04:53][%cal Bh6h5,Bh5h4,Bh4h3,Bh3h2][%mdl 32]} 53. Nb7 {[%emt 0:01:10]} g5 {[%emt 0:01:20]} 54. hxg5 {[%emt 0:00:47]} fxg5 {[%emt 0:00:06]} 55. Nxa5 {[%emt 0:00:19]} Bxa4 {[%emt 0:04:11]} 56. Nb7 {[%emt 0:01:27]} h4 {[%emt 0:02:04] Black mates.} 57. Nc5 {[%emt 0:01:52]} Bc2 {[%emt 0:00:11]} 58. Ke5 {[%emt 0:01:07]} h3 {[%emt 0:00:40]} 59. d6+ {[%emt 0:00:20]} Kf7 {[%emt 0:00:46]} 60. Ne6 {[%emt 0:02:13]} h2 {[%emt 0:00:17]} 61. Kd4 {[%emt 0:02:22] Weighted Error Value: White=0.45/Black=0.06 (flawless)} 0-1

[Event "55th Biel Festival GMT Classical 2022"]
[Site "Biel"]
[Date "2022.07.21"]
[Round "6.3"]
[White "Le, Quang Liem"]
[Black "Naiditsch, Arkadij"]
[Result "1-0"]
[ECO "A21"]
[WhiteElo "2722"]
[BlackElo "2664"]
[Annotator "TA"]
[PlyCount "77"]
[EventDate "2022.07.14"]
[EventType "tourn"]
[EventCountry "SUI"]
[SourceTitle "playchess.com"]
[Source "ChessBase"]
[SourceQuality "1"]
[TimeControl "40/6000+30:20/3000+30:900+30"]

{[%evp 9,77,0,7,-1,0,0,0,2,43,46,64,52,44,9,82,77,74,70,82,68,102,104,112,51,34,37,43,22,29,27,11,13,52,56,51,43,48,40,54,43,98,89,109,106,116,110,110,110,110,110,120,81,104,70,142,111,131,118,158,156,320,314,268,269,318,277,310,299,281,285]} 1. c4 {[%emt 0:00:04]} e5 {[%emt 0:02:01]} 2. Nc3 {[%emt 0:00:15]} d6 {[%emt 0:00:10]} 3. d4 {[%emt 0:01:08]} exd4 {[%emt 0:00:47]} 4. Qxd4 {[%emt 0:00:12]} Nc6 {[%emt 0:00:06]} 5. Qd2 {[%emt 0:00:13]} Nf6 {[%emt 0:00:18]} 6. Nf3 {[%emt 0:02:02] A21: English Opening: 1...e5 2 Nc3.} a5 {[%emt 0:03:22] Recently 6...Be6 got a lot of attention.} 7. e3 {[%emt 0:09:35]} g6 {[%emt 0:04:11]} 8. b3 {[%emt 0:00:43] [#] The position is equal.} a4 $146 {[%emt 0:01:01]} ({Predecessor:} 8... Bg7 9. Bb2 O-O 10. Be2 Bf5 11. O-O Ne4 12. Nxe4 Bxe4 13. Bxg7 Kxg7 14. Qc3+ Qf6 15. Qxf6+ Kxf6 {0-1 (61) Nasshan,D (2314)-Kjartansson,G (2470) Helsingor 2019}) 9. Nxa4 {[%emt 0:05:39]} d5 {[%emt 0:01:28] Strongly threatening ...Bb4.} 10. c5 {[%emt 0:01:03]} ({Wrong is} 10. Bb2 $2 Bb4 11. Nc3 (11. Bc3 $2 Ne4 $19) 11... Ne4 $19) 10... Ne4 {[%emt 0:04:02][%csl LRc5,LRd2]} 11. Qb2 {[%emt 0:00:37]} Rg8 {[%emt 0:04:44]} (11... f6 $1 $11) 12. Bb5 $16 {[%emt 0:00:35]} Bd7 {[%emt 0:05:47]} 13. O-O {[%emt 0:01:13]} Bg7 {[%emt 0:02:53]} 14. Nd4 {[%emt 0:00:46]} Qh4 {[%emt 0:15:46]} 15. Bxc6 {[%emt 0:12:23]} Bxc6 {[%emt 0:04:23] [#]} 16. f3 {[%emt 0:00:21]} (16. Qc2 $1 $16) 16... Ng5 $1 $14 {[%emt 0:06:58]} 17. Qe2 {[%emt 0:09:48]} Ne6 {[%emt 0:04:41]} 18. Bb2 {[%emt 0:00:44]} Nxd4 {[%emt 0:08:28]} 19. Bxd4 {[%emt 0:00:47]} Bxd4 {[%emt 0:00:45]} 20. exd4+ {[%emt 0:00:10]} Kd8 {[%emt 0:04:30]} 21. Qd1 {[%emt 0:02:55]} Bxa4 {[%emt 0:03:42]} 22. bxa4 {[%emt 0:03:47]} Re8 {[%emt 0:00:11]} 23. Rb1 {[%emt 0:00:50]} Kc8 {[%emt 0:03:09]} 24. Kh1 {[%emt 0:01:18] Qb3 is the strong threat.} c6 {[%emt 0:05:05]} ({Black should play} 24... Ra7 $14) 25. Qb3 $16 {[%emt 0:03:35]} Re7 {[%emt 0:05:41]} 26. Qb4 {[%emt 0:01:09]} Kd8 {[%emt 0:00:22]} 27. g3 {[%emt 0:12:45]} Qf6 {[%emt 0:00:15] [#]} 28. Rbe1 $1 {[%emt 0:00:42]} Kc8 {[%emt 0:15:17]} 29. Kg2 {[%emt 0:00:29]} Ra6 {[%emt 0:00:36]} 30. a5 {[%emt 0:11:31]} Kb8 {[%emt 0:01:07]} 31. Rb1 {[%emt 0:00:30]} h5 {[%emt 0:03:14]} (31... Re2+ $1 $14 32. Rf2 Rxf2+ 33. Kxf2 Qe7) 32. Qd2 {[%emt 0:03:36]} h4 {[%emt 0:00:36]} 33. g4 {[%emt 0:02:57]} g5 {[%emt 0:00:45]} 34. Rb6 {[%emt 0:03:06]} Qe6 $2 {[%emt 0:00:17] This costs Black the game.} (34... Ra7 $16 35. Rf2 Qg7) 35. Qxg5 $18 {[%emt 0:01:05] White has a decisive advantage.} Rxa5 {[%emt 0:00:03]} 36. Rf2 {[%emt 0:00:37]} (36. Qxh4 Rxa2+ 37. Rf2 Ra1 $18) 36... Qe1 {[%emt 0:00:22][%cal Oh4h3]} 37. Qd2 {[%emt 0:02:36]} ({Don't take} 37. Qxh4 $6 Ka7 $18) 37... Ra3 {[%emt 0:01:16]} 38. Qxe1 {[%emt 0:00:29]} ({Inferior is} 38. Rxb7+ Kxb7 39. Qb2+ Kc8 40. Qxa3 h3+ 41. Kxh3 Qxf2 42. Qa8+ Kd7 43. Qb7+ Kd8 44. Qb8+ Kd7 45. Qd6+ Ke8 46. Qb8+ Kd7 47. Qd6+ Ke8 48. Qb8+ Kd7 $11) 38... Rxe1 {[%emt 0:00:02]} 39. Rfb2 {[%emt 0:02:07] Weighted Error Value: White=0.09 (flawless) /Black=0.22 (precise)} 1-0